bitfinex-derivatives/quotes_ETHF0:USTF0_20241007
["timestamp","ask_amount","ask_price","bid_price","bid_amount"]
[1728317555330,2.59860521,2463.2,2462.4,3.6064]
[1728317555626,2.59860521,2463.2,2462.9,3.2078]
[1728317555826,2.59860521,2463.2,2462.4,3.6064]
[1728317556032,0.40604,2463.0,2462.9,3.2078]
[1728317556233,2.59860521,2463.2,2463.1,3.2078]
[1728317556438,2.59860521,2463.2,2462.4,3.6064]
[1728317556439,0.40608,2462.7,2462.4,4.01252]
[1728317556624,0.40605,2462.9,2462.7,3.2078]
[1728317556926,2.59860521,2463.2,2462.7,3.2078]
[1728317557227,2.59860521,2463.2,2462.4,3.6064]
[1728317557228,0.40605,2462.9,2462.4,3.6064]
[1728317557442,0.40605,2462.9,2462.6,3.61389]
[1728317557733,0.40601,2463.1,2462.7,3.61386]
[1728317557933,0.40603,2463.0,2462.7,3.2078]
[1728317558126,2.59860521,2463.2,2462.7,3.2078]
[1728317558327,0.40604,2463.0,2462.7,3.2078]
[1728317558518,0.40601,2463.1,2462.7,3.61387]
[1728317558719,0.40602,2463.1,2462.7,3.61386]
[1728317558924,0.40605,2462.9,2462.7,3.2078]
[1728317559129,2.59860521,2463.2,2462.7,3.2078]
[1728317559730,2.59860521,2463.2,2462.9,3.2078]
[1728317559927,3.00460521,2463.2,2462.9,3.2078]
[1728317560127,3.00460521,2463.2,2463.0,3.2078]
[1728317560438,2.59860521,2463.2,2463.0,3.2078]
[1728317560731,2.59860521,2463.2,2463.1,3.2078]
[1728317560932,3.3008,2463.8,2463.5,0.40593]
[1728317561136,3.3008,2463.8,2462.7,3.2078]
[1728317561137,3.2078,2463.8,2463.2,3.6224]
[1728317561433,0.40597,2463.3,2463.2,0.4146]
[1728317561734,0.40601,2463.1,2462.9,0.40603]
[1728317562032,3.2078,2463.4,2462.6,44.0078]
[1728317562233,0.40607,2462.7,2462.6,3.2078]
[1728317562433,0.40607,2462.7,2462.2,0.40615]
[1728317562434,0.40614,2462.4,2462.2,0.40615]
[1728317562727,0.40614,2462.4,2461.8,4.22335]
[1728317562728,0.40621,2461.9,2461.8,3.2078]
[1728317562929,0.40621,2461.9,2460.8,4.38646009]
[1728317562930,0.40636,2461.0,2460.8,0.41284009]
[1728317563130,7.5878,2462.1,2460.8,0.41284009]
[1728317563131,0.40637,2460.9,2460.8,0.00646009]
[1728317563325,3.2078,2461.2,2460.8,0.00646009]
[1728317563525,0.40636,2461.0,2460.8,0.00646009]
[1728317564029,5.1088,2461.2,2460.8,0.00646009]
[1728317564230,5.1088,2461.2,2460.0,0.2]
[1728317564231,7.5878,2460.9,2460.0,0.2]
[1728317564435,4.0632,2461.1,2460.0,0.2]
[1728317564436,3.2078,2460.5,2460.0,3.4078]
[1728317564731,4.38,2460.7,2460.2,3.61428]
[1728317564928,3.2078,2460.4,2460.0,0.2]
[1728317565319,3.2078,2460.4,2460.3,3.2078]
[1728317565521,3.2078,2460.4,2460.1,0.40649]
[1728317565522,0.093,2461.2,2460.2,5.39622]
[1728317565730,0.093,2461.5,2461.4,0.40629]
[1728317565936,3.3008,2462.4,2462.0,0.40617]
[1728317566138,10.153,2463.1,2462.3,3.2078]
[1728317566139,3.2078,2462.7,2462.3,3.2078]
[1728317566429,3.61388,2462.7,2462.5,3.2078]
[1728317566634,3.2078,2462.7,2462.5,3.2078]
[1728317566931,3.2078,2462.7,2462.6,3.2078]
[1728317567424,3.2078,2462.7,2462.3,0.40613]
[1728317567624,3.2078,2462.7,2462.6,0.40609]
[1728317567824,3.2078,2462.7,2462.6,3.2078]
[1728317568025,19.5986,2462.7,2461.1,3.2078]
[1728317568229,0.807,2463.6,2461.5,3.2078]
[1728317568230,3.2078,2461.9,2461.5,3.2078]
[1728317568431,0.40616,2462.2,2462.1,3.2078]
[1728317568640,0.40616,2462.2,2461.4,3.2078]
[1728317568641,0.40626,2461.6,2461.4,3.2078]
[1728317568828,0.40625,2461.7,2461.4,3.2078]
[1728317569136,0.40622,2461.8,2461.7,3.2078]
[1728317569634,10.0624,2461.8,2461.1,3.2078]
[1728317569832,3.2078,2461.9,2461.7,3.2078]
[1728317570027,3.2078,2461.9,2461.8,3.61402]
[1728317570336,1.95,2462.4,2461.8,6.4156]
[1728317570337,3.2078,2462.4,2461.8,6.4156]
[1728317570524,2.02919,2464.2,2461.8,6.4156]
[1728317570525,3.2078,2462.6,2462.3,3.2078]
[1728317570939,3.2078,2462.6,2462.5,3.2078]
[1728317571134,0.40612,2462.4,2462.3,3.2078]
[1728317571733,3.2078,2462.6,2462.0,40.8]
[1728317572039,3.2078,2462.6,2462.1,3.2078]
[1728317572040,0.40615,2462.3,2462.1,3.2078]
[1728317572338,3.2078,2462.6,2462.1,3.61397]
[1728317572539,3.2078,2462.6,2462.4,0.40612]
[1728317572735,3.2078,2462.6,2462.5,3.61391]
[1728317572930,5.1578,2463.1,2462.5,3.2078]
[1728317573129,0.40604,2463.0,2462.7,0.40606]
[1728317573335,0.40609,2462.7,2462.5,3.2078]
[1728317573538,0.40609,2462.7,2462.5,3.61391]
[1728317573841,3.61387,2462.8,2462.5,3.61391]
[1728317574036,0.40608,2462.7,2462.5,3.6139]
[1728317574437,3.2078,2462.8,2462.6,0.40608]
[1728317574739,3.61386,2462.8,2462.7,3.2078]
[1728317574934,0.40603,2463.0,2462.8,0.40605]
[1728317575141,0.40605,2462.9,2462.7,3.61387]
[1728317575434,3.2078,2462.8,2462.7,3.61387]
[1728317576140,3.61381,2463.1,2462.9,0.40603]
[1728317576434,0.40602,2463.0,2462.9,3.2078]
[1728317576637,0.40602,2463.0,2462.8,0.40605]
[1728317577134,3.2078,2463.1,2462.5,1.01527]
[1728317577437,3.2078,2463.1,2462.6,0.4193]
[1728317577736,3.2078,2463.1,2462.9,0.40603]
[1728317577940,3.2078,2463.1,2462.6,0.4193]
[1728317578244,3.2078,2462.8,2462.7,0.40607]
[1728317578535,3.2078,2462.8,2461.8,1.01554]
[1728317578735,3.2078,2462.5,2462.4,0.40611]
[1728317579127,3.2078,2462.5,2462.4,4.46691]
[1728317579435,2.5638,2462.5,2462.4,10.46691]
[1728317579731,3.2078,2462.9,2462.8,0.40606]
[1728317580331,3.2078,2462.9,2462.4,0.4261]
[1728317580538,0.40609,2462.6,2462.5,0.4061]
[1728317580840,3.2078,2462.6,2462.0,41.2193]
[1728317581028,3.2078,2462.6,2462.0,0.4193]
[1728317581029,1.01527,2462.5,2462.0,0.4193]
[1728317581345,0.40617,2462.1,2462.0,0.4193]
[1728317581541,0.40617,2462.1,2462.0,0.82549]
[1728317581740,3.2078,2462.3,2462.0,0.4193]
[1728317581941,5.07702,2462.2,2461.9,0.4073]
[1728317582239,3.61399,2462.0,2461.9,0.4073]
[1728317582425,3.2078,2462.0,2461.2,40.8]
[1728317582632,3.2078,2461.7,2461.2,0.816]
[1728317582828,0.4063,2461.3,2461.2,0.816]
[1728317583037,0.4063,2461.3,2461.2,0.4102]
[1728317583433,1.01583,2461.2,2460.7,0.4058]
[1728317583640,3.2078,2460.9,2460.7,0.4058]
[1728317583945,3.2078,2461.7,2460.8,3.2078]
[1728317584135,3.2078,2461.7,2461.6,0.40626]
[1728317584542,3.2078,2462.3,2462.2,0.40616]
[1728317585244,3.2078,2462.8,2462.7,0.40606]
[1728317585437,3.2078,2462.8,2462.0,0.4045]
[1728317585739,3.2078,2462.5,2462.2,0.40615]
[1728317585936,3.2078,2462.5,2461.8,0.4058]
[1728317586140,3.2078,2462.5,2462.4,0.40612]
[1728317586436,3.61387,2462.8,2462.6,0.40607]
[1728317586636,3.61386,2462.8,2462.0,1.01548]
[1728317586841,3.61387,2462.8,2462.5,0.40609]
[1728317587041,0.40609,2462.6,2462.4,0.40612]
[1728317587243,3.2078,2462.8,2461.9,3.2078]
[1728317587244,0.40612,2462.5,2462.3,0.40613]
[1728317587438,3.2078,2462.5,2461.9,3.2078]
[1728317587744,3.2078,2462.2,2462.0,0.40619]
[1728317587941,4.2232,2462.2,2461.3,0.4045]
[1728317588137,3.2078,2462.2,2461.4,0.4153]
[1728317588440,0.40636,2461.0,2460.8,0.40637]
[1728317588646,3.2078,2461.2,2460.6,0.4143]
[1728317588949,3.2078,2461.2,2461.0,0.40635]
[1728317589238,3.2078,2461.2,2460.6,0.4143]
[1728317589448,3.2078,2461.2,2461.1,0.40634]
[1728317589742,3.2078,2461.2,2460.6,0.4143]
[1728317590038,3.2078,2461.2,2461.1,0.40634]
[1728317590240,3.2078,2461.2,2461.1,4.46954]
[1728317590432,3.2078,2461.2,2461.1,0.40634]
[1728317590832,3.2078,2461.2,2460.7,1.01602]
[1728317590833,3.61414,2461.2,2461.0,0.40634]
[1728317591147,3.61414,2461.2,2460.7,1.01602]
[1728317591332,3.61413,2461.2,2461.1,0.40634]
[1728317591643,0.40635,2461.0,2460.9,0.40636]
[1728317591848,3.2078,2461.2,2460.9,0.40636]
[1728317592149,3.2078,2461.2,2461.0,0.40635]
[1728317592150,0.40634,2461.1,2461.0,0.40635]
[1728317592641,3.2078,2461.2,2461.1,0.40634]
[1728317593045,0.40626,2461.6,2461.1,4.46954]
[1728317593046,3.2078,2461.6,2461.1,4.46954]
[1728317593347,0.4063,2461.3,2460.8,4.22374]
[1728317593640,3.61409,2461.4,2461.3,0.4063]
[1728317593840,3.2078,2461.4,2460.6,41.2143]
[1728317594330,3.2078,2461.4,2460.7,1.01602]
[1728317594538,3.2078,2461.4,2461.1,0.40632]
[1728317594841,3.2078,2461.4,2460.6,41.2143]
[1728317594842,1.01577,2461.3,2460.6,41.2143]
[1728317595145,3.2078,2461.4,2460.8,3.2078]
[1728317595345,3.2078,2461.4,2460.6,41.2143]
[1728317595346,0.093,2461.8,2461.7,0.40624]
[1728317595543,0.40612,2462.5,2462.3,0.40614]
[1728317595739,3.2078,2462.4,2461.5,3.2078]
[1728317595951,3.2078,2462.1,2461.6,0.3906]
[1728317596241,3.2078,2462.4,2462.3,0.40614]
[1728317596447,0.40608,2462.7,2462.6,0.40609]
[1728317596644,3.2078,2462.8,2462.7,0.40607]
[1728317596839,3.2078,2462.8,2462.7,41.20607]
[1728317597040,3.2078,2462.8,2462.7,45.26687]
[1728317597438,3.2078,2462.8,2462.7,44.8608]
[1728317597650,3.2078,2462.8,2462.7,41.20607]
[1728317598039,3.2078,2462.8,2462.7,0.40607]
[1728317598340,0.40608,2462.7,2462.5,0.4061]
[1728317598643,3.2078,2462.8,2462.3,0.3906]
[1728317598846,0.40604,2463.0,2462.7,0.40607]
[1728317599046,3.2078,2463.1,2462.9,0.40604]
[1728317599243,3.2078,2463.1,2463.0,0.40602]
[1728317599847,0.204,2463.7,2462.7,1.01517]
[1728317599848,3.2078,2463.6,2462.7,1.01517]
[1728317600036,3.2078,2463.6,2463.1,1.015]
[1728317600347,3.2078,2463.6,2463.5,0.40594]
[1728317600841,3.2078,2463.6,2462.8,3.2078]
[1728317600842,0.40602,2463.1,2462.8,3.2078]
[1728317601042,4.22277,2463.3,2462.9,0.40603]
[1728317601243,0.40603,2463.0,2462.8,0.40604]
[1728317601638,4.22277,2463.3,2462.9,0.40604]
[1728317601639,0.40599,2463.2,2462.9,0.40604]
[1728317601944,3.2078,2463.3,2462.4,1.81001]
[1728317602142,3.2078,2463.3,2462.5,3.2078]
[1728317602347,1.52151134,2463.6,2463.5,0.40594]
[1728317602539,0.60992,2463.7,2463.2,3.2078]
[1728317602540,1.52151134,2463.7,2463.2,3.2078]
[1728317602843,5.27609429,2463.9,2463.5,0.40594]
[1728317602844,1.52151134,2463.6,2463.5,0.40594]
[1728317603550,1.52151134,2463.7,2463.6,0.40593]
[1728317603850,1.52151134,2463.8,2463.7,0.40591]
[1728317604052,2.06829429,2464.1,2464.0,0.40586]
[1728317604237,2.06829429,2464.1,2463.4,1.0149]
[1728317604238,0.40584,2464.2,2463.5,1.01486]
[1728317604646,0.40584,2464.2,2464.0,0.40586]
[1728317604848,2.06829429,2464.3,2464.2,0.40583]
[1728317605041,2.06829429,2464.3,2463.7,1.01477]
[1728317605042,2.06829429,2464.4,2463.7,8.60257]
[1728317605242,2.06829429,2464.4,2464.2,0.40582]
[1728317605549,2.06829429,2464.4,2464.3,0.40581]
[1728317605749,2.06829429,2464.6,2464.3,40.8]
[1728317605953,2.06829429,2464.7,2464.4,4.0576]
[1728317606249,0.40577,2464.6,2464.4,0.40578]
[1728317606452,2.47405429,2464.6,2464.4,0.40578]
[1728317606650,2.47407429,2464.5,2464.3,0.4058]
[1728317606846,2.06829429,2464.5,2464.4,0.40579]
[1728317607042,2.06829429,2464.5,2464.0,3.2078]
[1728317607248,2.61147203,2464.7,2464.0,3.2078]
[1728317607249,2.61147203,2464.7,2464.1,40.8]
[1728317607448,2.07181742,2464.7,2464.2,1.01457]
[1728317607747,2.07181742,2464.6,2464.1,40.8]
[1728317607942,2.07181742,2464.7,2464.6,0.40576]
[1728317608148,0.40576,2464.6,2464.1,40.8]
[1728317608355,0.40576,2464.6,2464.4,0.40579]
[1728317608548,2.07181742,2464.6,2464.1,40.8]
[1728317608749,2.07181742,2464.6,2464.5,0.40578]
[1728317609364,2.07181742,2464.7,2464.5,0.40578]
[1728317609655,0.40575,2464.7,2464.5,0.40576]
[1728317609850,0.40574,2464.8,2464.5,0.40576]
[1728317610052,0.40574,2464.7,2464.5,0.40576]
[1728317610253,0.40574,2464.8,2464.6,0.40575]
[1728317610455,3.2078,2464.9,2464.7,0.40574]
[1728317610647,3.2078,2464.9,2464.8,0.40573]
[1728317610851,3.2078,2464.9,2464.1,40.8]
[1728317611154,0.40582,2464.3,2464.1,0.40583]
[1728317611449,5.69861742,2465.0,2464.0,0.4269]
[1728317611650,3.2078,2465.0,2464.0,3.6347]
[1728317611850,2.07181742,2465.1,2464.1,0.40583]
[1728317611851,0.40581,2464.3,2464.1,0.40583]
[1728317612048,3.2078,2464.7,2464.0,0.4269]
[1728317612245,0.40577,2464.6,2464.4,0.40579]
[1728317612452,3.2078,2464.7,2464.0,0.4269]
[1728317612661,0.40579,2464.5,2464.3,0.4058]
[1728317612957,3.2078,2464.7,2464.0,0.4269]
[1728317613150,0.40577,2464.6,2464.4,0.40579]
[1728317613352,3.2078,2464.7,2464.1,1.01461]
[1728317613551,3.61355,2464.7,2464.5,0.40577]
[1728317613856,3.61355,2464.7,2464.5,0.40576]
[1728317614053,3.2078,2464.7,2464.6,0.40576]
[1728317614251,0.40576,2464.6,2464.5,0.40577]
[1728317614451,3.2078,2464.7,2464.4,0.40579]
[1728317614452,0.40578,2464.5,2464.4,0.40579]
[1728317614652,0.40577,2464.6,2464.0,0.4269]
[1728317614855,3.2078,2464.7,2464.0,0.4269]
[1728317615052,3.2078,2464.4,2463.4,4.38]
[1728317615252,4.22243,2464.1,2463.3,0.4307]
[1728317615453,3.2078,2464.1,2463.3,0.4307]
[1728317615752,3.2078,2464.1,2463.4,0.40596]
[1728317615953,0.40586,2464.0,2463.8,0.40588]
[1728317616154,3.2078,2464.1,2463.9,0.40587]
[1728317616345,0.40588,2463.9,2463.4,1.0149]
[1728317616656,0.40588,2463.9,2463.8,0.40589]
[1728317616851,4.22243,2464.1,2463.4,1.0149]
[1728317617048,0.4011,2464.3,2463.4,0.40595]
[1728317617049,0.40594,2463.5,2463.4,0.40595]
[1728317617251,3.2078,2463.8,2463.7,0.40591]
[1728317617449,3.2078,2463.8,2463.0,4.38]
[1728317617450,0.40593,2463.6,2463.2,0.40599]
[1728317617647,0.40575,2464.7,2464.6,0.40576]
[1728317617851,3.2078,2464.8,2464.2,4.38]
[1728317618056,3.2078,2464.8,2464.2,5.39456]
[1728317618256,0.40575,2464.7,2464.6,0.40576]
[1728317618454,3.61353,2464.8,2464.6,0.40576]
[1728317618650,3.61354,2464.8,2464.2,5.39456]
[1728317618847,3.2078,2464.8,2464.5,0.40576]
[1728317619058,3.2078,2464.8,2464.1,40.8]
[1728317619256,0.40586,2464.0,2463.9,0.40587]
[1728317619453,0.40585,2464.1,2463.5,1.4208]
[1728317619651,0.40585,2464.1,2463.9,0.40587]
[1728317619847,0.3946,2464.3,2463.6,1.01482]
[1728317620053,0.3946,2464.3,2463.5,4.38]
[1728317620257,0.80042,2464.3,2463.6,4.22262]
[1728317620451,0.80042,2464.3,2464.2,0.40583]
[1728317620753,0.40582,2464.3,2464.2,0.40583]
[1728317620949,3.2078,2464.4,2463.6,3.636]
[1728317621158,0.40591,2463.7,2463.6,0.40592]
[1728317621653,1.01467,2464.0,2463.6,0.40592]
[1728317621964,1.01467,2464.0,2463.3,40.8]
[1728317621965,0.40589,2463.8,2463.7,0.4059]
[1728317622657,0.40589,2463.9,2463.7,0.4059]
[1728317622961,3.61365,2464.1,2464.0,0.40586]
[1728317623261,3.61364,2464.1,2464.0,0.40586]
[1728317623559,1.42791,2464.6,2463.7,1.01476]
[1728317623560,3.6213,2464.6,2463.7,1.01476]
[1728317623751,0.40584,2464.2,2464.0,0.40584]
[1728317624064,0.40584,2464.2,2463.7,1.01476]
[1728317625259,3.2078,2464.0,2463.2,4.38]
[1728317625458,0.40597,2463.4,2463.3,0.40597]
[1728317625656,0.40593,2463.6,2463.1,1.87151]
[1728317625858,0.40593,2463.6,2463.5,0.40594]
[1728317626357,3.2078,2463.8,2463.5,0.40594]
[1728317626759,3.2078,2463.8,2463.1,1.8715]
[1728317627165,0.40595,2463.5,2463.4,0.40595]
[1728317627367,0.40593,2463.6,2463.5,0.40594]
[1728317628064,0.40593,2463.6,2463.1,0.406]
[1728317628065,0.40599,2463.2,2463.1,0.406]
[1728317628564,0.40599,2463.2,2462.8,1.01515]
[1728317628565,1.01508,2463.0,2462.4,0.4127]
[1728317628759,1.01508,2463.0,2462.7,0.40607]
[1728317628760,3.61386,2462.8,2462.7,0.40607]
[1728317629063,3.61382,2463.1,2462.6,1.01523]
[1728317629360,3.61382,2463.1,2463.0,0.40602]
[1728317629361,3.2078,2463.1,2463.0,0.40602]
[1728317629562,1.40755,2463.6,2463.4,0.40596]
[1728317629563,3.61375,2463.5,2463.4,0.40596]
[1728317629767,0.40598,2463.3,2463.2,0.40599]
[1728317629966,3.2078,2463.5,2462.9,4.38]
[1728317630163,0.406,2463.2,2462.9,4.38]
[1728317630463,0.40597,2463.4,2463.3,0.40597]
[1728317630669,3.2078,2463.5,2462.9,5.39509]
[1728317630967,0.40596,2463.4,2463.3,0.40596]
[1728317631171,3.61375,2463.5,2463.4,0.40596]
[1728317631460,0.40597,2463.4,2463.3,0.40597]
[1728317632474,3.2078,2463.5,2462.9,5.39509]
[1728317632764,3.2078,2463.5,2462.9,4.38]
[1728317632972,0.406,2463.2,2463.1,0.406]
[1728317633158,0.40599,2463.3,2463.2,0.40599]
[1728317634363,0.40599,2463.3,2462.9,4.38]
[1728317634364,4.22268,2463.5,2463.1,0.406]
[1728317634570,0.40599,2463.3,2462.9,4.38]
[1728317634774,4.22268,2463.5,2462.9,4.38]
[1728317634963,0.40598,2463.3,2463.2,0.40598]
[1728317635563,3.2078,2463.5,2462.9,4.38]
[1728317635871,0.40596,2463.4,2462.9,4.38]
[1728317636175,0.40596,2463.4,2463.3,0.40596]
[1728317636376,3.2078,2463.5,2463.3,0.40596]
[1728317636571,3.2078,2463.5,2463.0,1.01506]
[1728317636572,3.2078,2463.5,2463.4,0.40596]
[1728317636876,0.40597,2463.4,2463.1,0.40601]
[1728317637073,0.40596,2463.4,2462.9,5.39509]
[1728317637275,0.40596,2463.4,2462.8,1.44393]
[1728317637574,0.40609,2462.7,2462.5,0.40609]
[1728317637771,0.40609,2462.6,2462.5,0.4061]
[1728317638078,0.40606,2462.8,2462.7,0.40606]
[1728317638569,0.40608,2462.7,2462.6,0.40609]
[1728317638779,1.83728,2463.0,2462.0,4.0502]
[1728317639074,0.40604,2462.9,2462.8,0.40606]
[1728317639272,0.40605,2462.9,2462.8,0.40605]
[1728317639477,0.8222,2463.0,2462.7,0.40607]
[1728317639668,0.40606,2462.8,2462.7,0.40607]
[1728317639979,0.8222,2463.0,2462.8,0.40606]
[1728317639980,0.40605,2462.9,2462.8,0.40606]
[1728317640870,0.40605,2462.9,2462.3,4.38]
[1728317640871,0.40607,2462.8,2462.7,0.40607]
[1728317641070,1.01511,2462.9,2462.8,0.40605]
[1728317641071,0.40605,2462.9,2462.8,0.40605]
[1728317641267,3.2078,2463.1,2463.0,0.40602]
[1728317641680,3.2078,2463.1,2463.0,4.46602]
[1728317641881,3.2078,2463.4,2463.0,4.06]
[1728317642073,3.61376,2463.4,2463.3,0.40597]
[1728317642578,3.2078,2463.4,2463.3,4.46517]
[1728317643973,3.2078,2463.4,2463.3,0.40597]
[1728317644172,8.28191,2463.4,2462.6,4.38]
[1728317644383,0.40606,2462.8,2462.7,0.40606]
[1728317644977,1.01511,2462.9,2462.4,1.442]
[1728317645185,3.2078,2462.8,2462.0,1.01547]
[1728317645480,0.40609,2462.6,2462.3,0.40612]
[1728317645682,0.40609,2462.6,2462.5,0.40609]
[1728317645874,0.40609,2462.6,2462.2,0.40614]
[1728317645875,0.40614,2462.3,2462.2,0.40614]
[1728317646075,0.40614,2462.4,2462.1,0.40617]
[1728317646270,4.61606,2462.8,2462.0,0.4267]
[1728317646473,0.40613,2462.4,2462.3,0.40613]
[1728317646673,0.40613,2462.4,2462.0,1.44217]
[1728317646674,3.2078,2462.8,2462.7,0.40607]
[1728317646876,5.27961742,2463.2,2462.7,1.01519]
[1728317647081,3.2078,2463.2,2463.1,0.40601]
[1728317647678,3.2078,2463.2,2463.1,4.46601]
[1728317649278,3.2078,2463.5,2463.4,0.40596]
[1728317649487,3.11863,2464.1,2463.4,0.40596]
[1728317649488,2.07181742,2464.1,2463.4,4.38]
[1728317649677,3.2078,2464.2,2464.1,0.40584]
[1728317649882,2.07181742,2464.5,2464.1,4.38]
[1728317650085,5.27961742,2464.6,2464.5,0.40578]
[1728317650382,3.2078,2464.6,2464.5,8.84338]
[1728317650795,3.2078,2464.6,2464.3,0.4001]
[1728317651085,2.07937432,2464.4,2464.3,0.4001]
[1728317651277,2.07937432,2464.4,2464.3,0.80591]
[1728317651478,2.07937432,2464.4,2464.3,4.86351]
[1728317651790,2.08014274,2464.8,2464.6,0.40576]
[1728317652087,5.28794274,2464.9,2464.7,4.0576]
[1728317652298,2.61147203,2465.0,2464.9,0.40571]
[1728317652299,2.08014274,2465.0,2464.9,0.40571]
[1728317652982,2.61147203,2465.1,2464.6,4.38]
[1728317653282,2.07969064,2465.1,2464.9,4.38]
[1728317653484,2.07969064,2465.3,2464.9,4.38]
[1728317653685,2.07969064,2465.4,2465.3,0.40565]
[1728317653884,2.61147203,2465.8,2465.7,0.40558]
[1728317654084,5.81927203,2465.9,2465.8,0.40556]
[1728317654284,3.2078,2465.9,2465.8,0.40556]
[1728317654478,3.2078,2465.9,2465.7,0.40557]
[1728317654681,5.28616941,2465.9,2465.8,0.40556]
[1728317654877,5.28616941,2465.9,2465.3,0.414]
[1728317655277,5.28616941,2465.9,2465.8,0.40556]
[1728317655488,5.28616941,2465.9,2465.4,40.8]
[1728317655686,5.28616941,2465.9,2465.8,0.40556]
[1728317655886,2.07836941,2465.9,2465.8,0.40556]
[1728317656083,2.07830154,2466.1,2466.0,0.40553]
[1728317656305,5.28610154,2466.3,2466.1,0.40551]
[1728317656590,3.2078,2466.3,2466.1,0.4055]
[1728317656781,3.2078,2466.3,2466.2,0.4055]
[1728317657387,3.2078,2466.3,2466.2,4.4599]
[1728317657786,3.2078,2466.9,2466.2,4.0544]
[1728317657996,0.40541,2466.8,2466.1,40.8]
[1728317658191,3.2078,2466.9,2466.5,0.40545]
[1728317658386,0.4054,2466.8,2466.5,0.40545]
[1728317658589,3.2078,2466.9,2466.3,4.38]
[1728317658789,0.40542,2466.7,2466.4,0.40546]
[1728317658991,3.2078,2466.9,2466.3,4.38]
[1728317659184,3.2078,2466.9,2466.6,0.40542]
[1728317659390,3.2078,2466.9,2466.7,0.40541]
[1728317659586,3.2078,2466.9,2466.8,0.4054]
[1728317659790,10.152,2467.6,2466.7,4.38]
[1728317659791,3.2078,2467.6,2466.7,4.38]
[1728317660095,3.2078,2467.6,2467.0,4.38]
[1728317660284,3.2078,2467.3,2466.3,7.5878]
[1728317660599,3.2078,2467.3,2466.6,0.40542]
[1728317660600,0.40537,2467.0,2466.6,0.40542]
[1728317660892,0.40539,2466.9,2466.5,0.40544]
[1728317661093,0.40539,2466.9,2466.3,4.38]
[1728317661290,3.2078,2467.3,2466.4,0.40546]
[1728317661592,0.40543,2466.6,2466.1,1.2023]
[1728317661789,0.40545,2466.5,2466.2,0.4055]
[1728317662386,3.2078,2466.7,2466.1,0.7968]
[1728317662387,0.40549,2466.3,2466.1,0.7968]
[1728317662589,0.40547,2466.4,2466.1,1.20231]
[1728317662994,3.2078,2466.4,2466.1,0.7968]
[1728317663196,0.40547,2466.4,2466.1,1.20231]
[1728317663389,0.40546,2466.5,2466.2,0.4055]
[1728317664686,0.40548,2466.4,2466.1,1.20231]
[1728317664892,3.2078,2466.7,2466.1,0.7968]
[1728317665492,3.2078,2466.7,2466.3,4.38]
[1728317665696,3.2078,2466.7,2466.6,0.40543]
[1728317665996,0.40532,2467.3,2467.0,0.40536]
[1728317666197,0.40536,2467.1,2466.8,0.40539]
[1728317666499,0.8184,2468.0,2466.4,0.40546]
[1728317666500,0.40543,2466.7,2466.4,0.40546]
[1728317667195,3.2078,2466.9,2466.3,4.38]
[1728317667397,3.2078,2466.9,2466.4,0.40546]
[1728317667591,1.4189,2466.8,2466.3,0.40547]
[1728317667791,3.2078,2466.9,2466.1,0.7968]
[1728317668001,3.2078,2466.9,2466.4,0.40545]
[1728317668196,0.40545,2466.5,2466.3,0.40547]
[1728317668691,3.2078,2466.6,2466.2,0.40549]
[1728317668996,0.40547,2466.4,2466.2,0.40549]
[1728317669200,0.40549,2466.3,2465.9,3.2078]
[1728317669404,3.2078,2466.2,2465.8,0.40555]
[1728317669694,0.40553,2466.0,2465.8,0.40555]
[1728317670101,0.40555,2465.9,2465.7,4.78557]
[1728317670397,3.2078,2465.9,2465.1,3.2078]
[1728317670594,0.40558,2465.7,2465.5,0.40561]
[1728317670803,3.2078,2465.6,2464.9,3.2078]
[1728317670999,3.2078,2465.6,2465.0,41.81424]
[1728317671194,3.2078,2465.6,2464.9,3.2078]
[1728317671404,3.2078,2465.6,2464.8,4.38]
[1728317671792,4.22182,2465.6,2465.2,0.40566]
[1728317671998,0.40562,2465.5,2465.3,0.40564]
[1728317672397,3.2078,2465.6,2465.1,4.38]
[1728317672605,0.40555,2465.9,2465.7,0.40557]
[1728317672794,3.2078,2466.0,2465.5,4.38]
[1728317673007,3.2078,2466.0,2465.9,0.40555]
[1728317673311,0.40557,2465.8,2465.6,0.40559]
[1728317673510,1.01394,2465.8,2465.1,4.38]
[1728317673800,3.2078,2466.0,2465.1,4.38]
[1728317674006,3.2078,2465.6,2464.8,48.3878]
[1728317674194,0.40564,2465.4,2465.1,0.40567]
[1728317674400,0.40563,2465.4,2465.2,0.40565]
[1728317675705,0.40566,2465.2,2465.0,0.40568]
[1728317675911,0.40565,2465.3,2465.1,0.40567]
[1728317676599,1.46304,2465.5,2464.8,45.18]
[1728317676600,0.40563,2465.4,2465.2,0.40565]
[1728317676805,0.449,2465.5,2464.8,45.18]
[1728317677001,0.449,2465.5,2465.1,0.40567]
[1728317677002,0.40564,2465.4,2465.1,0.40567]
[1728317677202,0.40564,2465.4,2464.8,45.18]
[1728317677710,0.40564,2465.4,2465.2,0.40566]
[1728317678606,0.40564,2465.4,2464.8,46.19431]
[1728317678807,0.85461,2465.5,2464.9,1.01429]
[1728317679001,0.449,2465.5,2464.9,1.01429]
[1728317679305,0.40563,2465.4,2465.2,0.40565]
[1728317679906,0.449,2465.5,2465.3,0.40565]
[1728317680106,0.85463,2465.5,2465.3,0.40565]
[1728317680608,3.2078,2465.6,2465.5,0.40561]